[Event "EYCC 2017"]
[Site "Mamaia"]
[Date "2017.09.12"]
[Round "7"]
[White "Kharitonov, Egor"]
[Black "Borhy, Marcell"]
[Result "1/2-1/2"]
[ECO "D36"]
[WhiteElo "2387"]
[BlackElo "2178"]
[Annotator "ChessBase"]
[PlyCount "90"]
[EventDate "2017.??.??"]
[EventType "swiss"]
[EventCountry "ROU"]
[SourceTitle "playchess.com"]
[Source "ChessBase"]
[SourceQuality "1"]
[TimeControl "40/5400+30:1800+30"]

1. d4 {[%emt 0:00:00]} d5 {[%emt 0:00:10]} 2. c4 {[%emt 0:00:00]} e6 {[%emt 0:00:21]} 3. Nc3 {[%emt 0:00:35]} Nf6 {[%emt 0:00:16]} 4. cxd5 {[%emt 0:00:06]} exd5 {[%emt 0:00:14]} 5. Bg5 {[%emt 0:00:07]} c6 {[%emt 0:00:31]} 6. Qc2 {[%emt 0:00:06]} g6 {[%emt 0:01:37]} 7. e3 {[%emt 0:00:40]} Bf5 {[%emt 0:00:44]} 8. Bd3 {[%emt 0:01:20]} Bxd3 {[%emt 0:00:36]} 9. Qxd3 {[%emt 0:00:06]} Nbd7 {[%emt 0:01:02]} 10. Nf3 {[%emt 0:00:07]} Be7 {[%emt 0:01:17]} 11. O-O {[%emt 0:01:31]} O-O {[%emt 0:00:52]} 12. Rab1 {[%emt 0:02:03]} a5 {[%emt 0:00:26]} 13. Qc2 {[%emt 0:02:06]} b5 {[%emt 0:11:37]} 14. Ne2 {[%emt 0:13:04]} Rc8 {[%emt 0:03:24]} 15. Nc1 {[%emt 0:04:05]} Ne4 {[%emt 0:05:16]} 16. Bf4 {[%emt 0:08:12]} f6 {[%emt 0:27:03]} 17. Nd2 {[%emt 0:09:24]} Nxd2 {[%emt 0:16:29]} 18. Qxd2 {[%emt 0:02:39]} Nb6 {[%emt 0:03:55]} 19. Qxa5 {[%emt 0:12:47]} b4 {[%emt 0:00:10]} 20. Qa6 {[%emt 0:00:05]} Nc4 {[%emt 0:00:13]} 21. Rd1 {[%emt 0:00:07]} g5 {[%emt 0:09:37]} 22. Bg3 {[%emt 0:00:10]} h5 {[%emt 0:00:31]} 23. h3 {[%emt 0:03:02]} Qd7 {[%emt 0:01:56]} 24. Qa4 {[%emt 0:00:41]} h4 {[%emt 0:00:20]} 25. Bh2 {[%emt 0:00:06]} g4 {[%emt 0:00:25]} 26. Qc2 {[%emt 0:01:35]} Rf7 {[%emt 0:01:52]} 27. hxg4 {[%emt 0:02:15]} Qxg4 {[%emt 0:00:03]} 28. Qe2 {[%emt 0:00:15]} Qe4 {[%emt 0:08:39]} 29. Qd3 {[%emt 0:03:10]} f5 {[%emt 0:00:09]} 30. Ne2 {[%emt 0:10:02]} Ra8 {[%emt 0:00:58]} 31. Qxe4 {[%emt 0:06:30]} fxe4 {[%emt 0:00:11]} 32. Nc1 {[%emt 0:00:09]} Bg5 {[%emt 0:04:58]} 33. b3 {[%emt 0:01:25]} Bxe3 {[%emt 0:00:31]} 34. fxe3 {[%emt 0:07:46]} Nxe3 {[%emt 0:00:01]} 35. Re1 {[%emt 0:00:12]} Nc2 {[%emt 0:00:05]} 36. Rf1 {[%emt 0:00:34]} Nxd4 {[%emt 0:00:19]} 37. Rxf7 {[%emt 0:01:22]} Kxf7 {[%emt 0:00:01]} 38. Bd6 {[%emt 0:01:02]} Rg8 {[%emt 0:01:54]} 39. Kh2 {[%emt 0:00:52]} Nf5 {[%emt 0:00:42]} 40. Bxb4 {[%emt 0:00:00]} d4 {[%emt 0:00:27]} 41. Ne2 {[%emt 0:03:03]} d3 {[%emt 0:05:59]} 42. Nf4 {[%emt 0:00:05]} Rd8 {[%emt 0:04:54]} 43. Rd1 {[%emt 0:03:42]} Ne3 {[%emt 0:01:47]} 44. Re1 {[%emt 0:04:46]} Ng4+ {[%emt 0:04:53]} 45. Kg1 {[%emt 0:01:01]} d2 {[%emt 0:00:09]} 1/2-1/2

[Event "EYCC 2017"]
[Site "Mamaia"]
[Date "2017.09.12"]
[Round "7"]
[White "Kucuksari, Kaan"]
[Black "Yeritsyan, Aram"]
[Result "0-1"]
[ECO "E11"]
[WhiteElo "2319"]
[BlackElo "2264"]
[Annotator "ChessBase"]
[PlyCount "84"]
[EventDate "2017.??.??"]
[EventType "swiss"]
[EventCountry "ROU"]
[SourceTitle "playchess.com"]
[Source "ChessBase"]
[SourceQuality "1"]
[TimeControl "40/5400+30:1800+30"]

1. d4 {[%emt 0:00:00]} Nf6 {[%emt 0:00:05]} 2. Nf3 {[%emt 0:00:00]} e6 {[%emt 0:00:04]} 3. c4 {[%emt 0:00:00]} Bb4+ {[%emt 0:00:05]} 4. Nbd2 {[%emt 0:00:00]} b6 {[%emt 0:00:12]} 5. a3 {[%emt 0:00:18]} Bxd2+ {[%emt 0:00:06]} 6. Qxd2 {[%emt 0:00:09]} Bb7 {[%emt 0:00:07]} 7. e3 {[%emt 0:00:07]} d6 {[%emt 0:00:42]} 8. Be2 {[%emt 0:00:14]} O-O {[%emt 0:00:13]} 9. O-O {[%emt 0:00:11]} Nbd7 {[%emt 0:00:05]} 10. b4 {[%emt 0:01:02]} Ne4 {[%emt 0:00:06]} 11. Qc2 {[%emt 0:00:29]} f5 {[%emt 0:00:29]} 12. Bb2 {[%emt 0:15:24]} Ndf6 {[%emt 0:16:15]} 13. Ne1 {[%emt 0:08:10]} Ng4 {[%emt 0:14:29]} 14. h3 {[%emt 0:26:35]} Ngf6 {[%emt 0:13:05]} 15. Nd3 {[%emt 0:02:24]} g5 {[%emt 0:04:14]} 16. Kh2 Ne8 {[%emt 0:19:39]} 17. f3 {[%emt 0:06:30]} N4f6 {[%emt 0:00:05]} 18. a4 {[%emt 0:04:55]} g4 {[%emt 0:04:48]} 19. fxg4 {[%emt 0:06:03]} fxg4 {[%emt 0:00:04]} 20. Rf4 {[%emt 0:02:30]} gxh3 {[%emt 0:02:41]} 21. gxh3 {[%emt 0:00:35]} Be4 {[%emt 0:01:17]} 22. Raf1 {[%emt 0:05:30]} Qe7 {[%emt 0:03:37]} 23. Bf3 {[%emt 0:05:04]} Bxf3 {[%emt 0:01:01]} 24. R1xf3 {[%emt 0:01:01]} Ng7 {[%emt 0:01:52]} 25. Qg2 {[%emt 0:00:31]} Nfh5 {[%emt 0:05:03]} 26. Rg4 {[%emt 0:06:27]} Rxf3 {[%emt 0:00:38]} 27. Qxf3 {[%emt 0:00:03]} Rf8 {[%emt 0:00:07]} 28. Qg2 {[%emt 0:00:08]} Nf6 {[%emt 0:01:36]} 29. Rg5 {[%emt 0:00:52]} Kh8 {[%emt 0:02:12]} 30. Nf4 {[%emt 0:00:19]} d5 {[%emt 0:04:45]} 31. Qg3 {[%emt 0:06:11]} Nf5 {[%emt 0:01:30]} 32. Qg1 {[%emt 0:00:29]} Qxb4 {[%emt 0:01:12]} 33. Nxe6 {[%emt 0:03:20]} Qd6+ {[%emt 0:00:33]} 34. Nf4 {[%emt 0:00:05]} Ne4 {[%emt 0:00:44]} 35. Rg4 {[%emt 0:00:16]} Nd2 {[%emt 0:00:42]} 36. Kh1 {[%emt 0:01:19]} Nxc4 {[%emt 0:01:12]} 37. e4 {[%emt 0:00:38]} Nxb2 {[%emt 0:01:51]} 38. exf5 {[%emt 0:00:03]} Qf6 {[%emt 0:01:22]} 39. Ne6 {[%emt 0:00:58]} Rc8 {[%emt 0:00:35]} 40. Rg7 {[%emt 0:00:00]} Qxf5 {[%emt 0:00:22]} 41. Qe3 {[%emt 0:16:52]} Re8 {[%emt 0:07:12]} 42. Rg5 {[%emt 0:04:46]} Rxe6 {[%emt 0:00:27]} 0-1

[Event "EYCC 2017"]
[Site "Mamaia"]
[Date "2017.09.12"]
[Round "7"]
[White "Trimitzios, Petros"]
[Black "Kosakowski, Jakub"]
[Result "1-0"]
[ECO "E62"]
[WhiteElo "2191"]
[BlackElo "2332"]
[Annotator "ChessBase"]
[PlyCount "105"]
[EventDate "2017.??.??"]
[EventType "swiss"]
[EventCountry "ROU"]
[SourceTitle "playchess.com"]
[Source "ChessBase"]
[SourceQuality "1"]
[TimeControl "40/5400+30:1800+30"]

1. d4 {[%emt 0:00:00]} Nf6 {[%emt 0:00:17]} 2. c4 {[%emt 0:00:25]} g6 {[%emt 0:00:15]} 3. g3 {[%emt 0:00:40]} Bg7 {[%emt 0:00:15]} 4. Bg2 {[%emt 0:00:33]} O-O {[%emt 0:00:35]} 5. Nf3 {[%emt 0:00:29]} d6 {[%emt 0:00:15]} 6. O-O {[%emt 0:00:58]} c6 {[%emt 0:00:12]} 7. Nc3 {[%emt 0:03:02]} Bf5 {[%emt 0:00:25]} 8. Re1 {[%emt 0:01:29]} Ne4 {[%emt 0:02:47]} 9. Nd2 {[%emt 0:18:22]} Nxc3 {[%emt 0:09:53]} 10. bxc3 {[%emt 0:00:38]} Na6 {[%emt 0:01:25]} 11. e4 {[%emt 0:07:01]} Bd7 {[%emt 0:00:32]} 12. Nf1 {[%emt 0:05:12]} Qa5 {[%emt 0:04:21]} 13. Bd2 {[%emt 0:00:36]} e5 {[%emt 0:02:55]} 14. Ne3 {[%emt 0:04:17]} Rfe8 {[%emt 0:02:06]} 15. c5 {[%emt 0:09:17]} dxc5 {[%emt 0:07:35]} 16. Nc4 {[%emt 0:00:33]} Qc7 {[%emt 0:00:16]} 17. Nxe5 {[%emt 0:00:07]} Rad8 {[%emt 0:29:58]} 18. Bf4 {[%emt 0:04:13]} g5 {[%emt 0:02:23]} 19. Bxg5 {[%emt 0:05:18]} f6 {[%emt 0:00:22]} 20. Qb3+ {[%emt 0:03:15]} c4 {[%emt 0:08:30]} 21. Qxc4+ {[%emt 0:01:29]} Be6 {[%emt 0:00:21]} 22. d5 {[%emt 0:00:33]} cxd5 {[%emt 0:01:31]} 23. exd5 {[%emt 0:00:39]} fxg5 {[%emt 0:00:55]} 24. Qxc7 {[%emt 0:00:02]} Nxc7 {[%emt 0:00:09]} 25. dxe6 {[%emt 0:00:02]} Rxe6 {[%emt 0:00:12]} 26. Ng4 {[%emt 0:03:37]} h5 {[%emt 0:13:48]} 27. Ne3 {[%emt 0:00:40]} Bxc3 {[%emt 0:00:25]} 28. Red1 {[%emt 0:00:01]} Rxd1+ {[%emt 0:09:28]} 29. Rxd1 {[%emt 0:00:04]} Re7 {[%emt 0:00:29]} 30. Bxb7 {[%emt 0:00:48]} a5 {[%emt 0:00:52]} 31. Kg2 {[%emt 0:03:39]} Bb4 {[%emt 0:00:50]} 32. h4 {[%emt 0:02:50]} gxh4 {[%emt 0:00:10]} 33. Nf5 {[%emt 0:00:07]} Re2 {[%emt 0:01:02]} 34. Nxh4 {[%emt 0:00:09]} Ne6 {[%emt 0:01:24]} 35. Bf3 {[%emt 0:02:01]} Rb2 {[%emt 0:00:23]} 36. Kf1 {[%emt 0:08:33]} Bc5 {[%emt 0:00:23]} 37. Be2 {[%emt 0:00:12]} Kg7 {[%emt 0:00:22]} 38. a4 {[%emt 0:00:20]} Kf6 {[%emt 0:00:41]} 39. Rd5 {[%emt 0:00:27]} Bb6 {[%emt 0:00:22]} 40. Rxh5 {[%emt 0:00:00]} Nd4 {[%emt 0:00:03]} 41. Bb5 {[%emt 0:02:12]} Ba7 {[%emt 0:02:44]} 42. Bd3 {[%emt 0:05:40]} Nb3 {[%emt 0:03:51]} 43. Rf5+ {[%emt 0:00:49]} Kg7 {[%emt 0:00:43]} 44. g4 {[%emt 0:01:01]} Nc5 {[%emt 0:02:24]} 45. Bc4 {[%emt 0:00:54]} Bb6 {[%emt 0:04:29]} 46. Rf7+ {[%emt 0:00:39]} Kh6 {[%emt 0:00:06]} 47. f4 {[%emt 0:03:04]} Ne4 {[%emt 0:00:38]} 48. Bd3 {[%emt 0:00:27]} Rb4 {[%emt 0:07:30]} 49. Kg2 {[%emt 0:02:20]} Rxa4 {[%emt 0:00:26]} 50. Kf3 {[%emt 0:00:44]} Nd2+ {[%emt 0:01:11]} 51. Kg3 {[%emt 0:00:14]} Ne4+ {[%emt 0:00:51]} 52. Bxe4 {[%emt 0:00:01]} Bf2+ {[%emt 0:00:20]} 53. Kh3 {[%emt 0:00:42]} 1-0

[Event "EYCC 2017"]
[Site "Mamaia"]
[Date "2017.09.12"]
[Round "7"]
[White "Muetsch, Annmarie"]
[Black "Grigoryan, Arpine"]
[Result "1-0"]
[ECO "C07"]
[WhiteElo "2137"]
[BlackElo "1865"]
[Annotator "NA"]
[PlyCount "113"]
[EventDate "2017.??.??"]
[EventType "swiss"]
[EventCountry "ROU"]
[SourceTitle "playchess.com"]
[Source "ChessBase"]
[SourceQuality "1"]
[TimeControl "40/5400+30:1800+30"]

1. e4 {[%emt 0:00:00]} e6 {[%emt 0:00:05]} 2. d4 {[%emt 0:00:00]} d5 {[%emt 0:00:02]} 3. Nd2 {[%emt 0:00:00]} c5 {[%emt 0:00:04]} 4. exd5 {[%emt 0:00:00]} Qxd5 {[%emt 0:00:03]} 5. dxc5 {[%emt 0:00:14]} Bxc5 {[%emt 0:03:06]} 6. Ngf3 {[%emt 0:01:12]} Nf6 {[%emt 0:02:37]} 7. Bc4 {[%emt 0:04:26]} Qd8 {[%emt 0:03:32]} 8. Qe2 {[%emt 0:03:00]} O-O {[%emt 0:08:25]} 9. Nb3 {[%emt 0:03:59]} Be7 {[%emt 0:03:17]} 10. Bd2 {[%emt 0:05:01]} Nc6 {[%emt 0:05:33]} 11. O-O-O {[%emt 0:07:22]} Qc7 {[%emt 0:03:23]} 12. Kb1 {[%emt 0:14:16]} a6 {[%emt 0:09:08]} 13. Bd3 {[%emt 0:02:29]} Nb4 {[%emt 0:04:05]} 14. Bxb4 {[%emt 0:03:55]} Bxb4 {[%emt 0:00:24]} 15. Ne5 {[%emt 0:13:56]} Nd5 {[%emt 0:12:30]} 16. Be4 {[%emt 0:10:59]} Nf6 {[%emt 0:05:03]} 17. Bf3 {[%emt 0:01:20]} a5 {[%emt 0:01:13]} 18. a4 {[%emt 0:08:13]} Bd7 {[%emt 0:03:06]} 19. Nxd7 {[%emt 0:01:29]} Nxd7 {[%emt 0:00:07]} 20. Qb5 {[%emt 0:03:37]} Nc5 {[%emt 0:04:04]} 21. Nc1 {[%emt 0:06:01]} Ra6 {[%emt 0:01:43]} 22. Qc4 {[%emt 0:01:02]} Rb6 {[%emt 0:01:07]} 23. Ka2 {[%emt 0:01:23]} Qe7 {[%emt 0:02:26]} 24. c3 {[%emt 0:03:28]} Nxa4 {[%emt 0:01:41]} 25. Nd3 {[%emt 0:00:20]} Nc5 {[%emt 0:06:50]} 26. cxb4 {[%emt 0:00:49]} Nxd3 {[%emt 0:00:06]} 27. Rxd3 {[%emt 0:01:18]} Rxb4 {[%emt 0:01:23]} 28. Qc3 {[%emt 0:00:43]} Qe8 {[%emt 0:02:20]} 29. Kb1 {[%emt 0:00:46]} Qb5 {[%emt 0:04:11]} 30. Rhd1 {[%emt 0:00:29]} Qb6 {[%emt 0:00:13]} 31. Qd2 {[%emt 0:00:59]} Qb5 {[%emt 0:02:16]} 32. Rd8 {[%emt 0:00:58]} Qf5+ {[%emt 0:00:34]} 33. Qc2 {[%emt 0:00:36]} Qxc2+ {[%emt 0:02:23]} 34. Kxc2 {[%emt 0:00:05]} f5 {[%emt 0:00:17]} 35. R8d7 {[%emt 0:01:18]} Rc8+ {[%emt 0:00:40]} 36. Kb1 {[%emt 0:00:06]} b5 {[%emt 0:01:15]} 37. Re7 {[%emt 0:00:45]} a4 {[%emt 0:00:17]} 38. Rxe6 {[%emt 0:00:44]} a3 {[%emt 0:03:20]} 39. Re2 {[%emt 0:00:22]} Rc7 {[%emt 0:00:32]} 40. Ka2 {[%emt 0:00:00]} axb2 {[%emt 0:02:25]} 41. Rxb2 {[%emt 0:01:56]} Ra4+ {[%emt 0:00:23]} 42. Kb1 {[%emt 0:00:14]} Rca7 {[%emt 0:01:05]} 43. Rxb5 {[%emt 0:03:12]} Ra1+ {[%emt 0:00:52]} 44. Kc2 {[%emt 0:00:07]} R1a2+ {[%emt 0:01:55]} 45. Rb2 {[%emt 0:00:31]} Rc7+ {[%emt 0:00:35]} 46. Kb1 {[%emt 0:00:12]} Rxb2+ {[%emt 0:01:57]} 47. Kxb2 {[%emt 0:00:06]} Kf7 {[%emt 0:00:04]} 48. Rd3 {[%emt 0:03:56]} Kf6 {[%emt 0:01:31]} 49. Rc3 {[%emt 0:00:31]} Ra7 {[%emt 0:00:11]} 50. Kc1 {[%emt 0:00:50]} g5 {[%emt 0:02:38]} 51. Kd2 {[%emt 0:00:59]} g4 {[%emt 0:01:21]} 52. Be2 {[%emt 0:00:54]} Ra5 {[%emt 0:01:30]} 53. Bd3 {[%emt 0:01:10]} h5 {[%emt 0:00:55]} 54. g3 {[%emt 0:01:59]} Re5 {[%emt 0:01:45]} 55. Rc8 {[%emt 0:00:43]} Kg5 {[%emt 0:00:57]} 56. Rg8+ {[%emt 0:00:30]} Kh6 {[%emt 0:00:56]} 57. Rb8 {[%emt 0:02:10]} 1-0

[Event "EYCC 2017"]
[Site "Mamaia"]
[Date "2017.09.12"]
[Round "7"]
[White "Eizaguerri Floris, Maria"]
[Black "Guillo Longares, Cecilia"]
[Result "1/2-1/2"]
[ECO "B22"]
[WhiteElo "2098"]
[BlackElo "1810"]
[Annotator "NA RC"]
[PlyCount "128"]
[EventDate "2017.??.??"]
[EventType "swiss"]
[EventCountry "ROU"]
[SourceTitle "playchess.com"]
[Source "ChessBase"]
[SourceQuality "1"]
[TimeControl "40/5400+30:1800+30"]

1. e4 {[%emt 0:00:00]} c5 {[%emt 0:00:04]} 2. c3 {[%emt 0:00:00]} Nf6 {[%emt 0:00:05]} 3. e5 {[%emt 0:00:06]} Nd5 {[%emt 0:00:04]} 4. Bc4 {[%emt 0:00:05]} Nb6 {[%emt 0:00:16]} 5. Bb3 {[%emt 0:00:17] B22: Sicilian: 2 c3} d5 {[%emt 0:00:16]} (5... c4 6. Bc2 Nc6 7. Nf3 Qc7 8. Qe2 g5 9. h3 Bg7 10. Na3 Nxe5 11. Nxg5 d5 12. Nb5 Qd7 13. f4 Nd3+ 14. Bxd3 cxd3 15. Qxd3 f6 16. Nf3 e5 {1-0 (52) Kovalenko,I (2659)-Salem,A (2638) Biel 2017}) 6. exd6 {[%emt 0:01:02]} Qxd6 {[%emt 0:00:06]} 7. Na3 {[%emt 0:06:29]} Bf5 {[%emt 0:01:24]} 8. Qf3 $146 {[%emt 0:10:18]} ({Predecessor:} 8. d4 cxd4 9. Nf3 dxc3 10. Qxd6 exd6 11. Nb5 Na6 12. O-O O-O-O {0-1 (45) Lyell,M (2193)-Kiremitciyan,A (2191) Budapest 2016}) 8... Qe5+ {[%emt 0:06:14]} 9. Ne2 {[%emt 0:01:47]} e6 {[%emt 0:14:28]} 10. d4 {[%emt 0:04:36]} cxd4 {[%emt 0:01:26]} 11. Bf4 {[%emt 0:01:23]} Qe4 {[%emt 0:01:22]} 12. Qxe4 {[%emt 0:01:05]} Bxe4 {[%emt 0:00:01]} 13. Nb5 {[%emt 0:01:17]} Na6 {[%emt 0:01:34]} 14. f3 {[%emt 0:01:31]} Bd5 {[%emt 0:04:23]} 15. Nexd4 {[%emt 0:03:17]} Bc5 {[%emt 0:04:12]} 16. O-O-O {[%emt 0:13:41]} O-O {[%emt 0:03:32]} 17. Rhe1 {[%emt 0:01:55]} Bxb3 {[%emt 0:01:59]} 18. Nxb3 {[%emt 0:00:57]} Nd5 {[%emt 0:00:15]} 19. Nxc5 {[%emt 0:11:23]} Nxf4 {[%emt 0:01:35]} 20. Nxb7 {[%emt 0:05:10]} Nxg2 {[%emt 0:02:40]} 21. Re4 {[%emt 0:02:11]} Rab8 {[%emt 0:06:11] [#]} 22. N5d6 $1 {[%emt 0:03:05]} f5 {[%emt 0:03:04]} 23. Rxe6 $18 {[%emt 0:07:10]} Nh4 {[%emt 0:03:40]} 24. f4 {[%emt 0:03:13]} Ng6 {[%emt 0:01:02]} 25. Rd4 {[%emt 0:02:17]} Nc7 {[%emt 0:01:52]} 26. Re1 {[%emt 0:00:28]} Nh4 {[%emt 0:04:28]} 27. Re7 {[%emt 0:04:55]} Ne8 {[%emt 0:00:38]} 28. Nc5 {[%emt 0:01:52]} Ng6 {[%emt 0:02:50]} 29. Rxa7 {[%emt 0:07:10]} Nxd6 {[%emt 0:01:40]} 30. Rxd6 {[%emt 0:00:05]} Nxf4 {[%emt 0:00:41]} 31. Rdd7 {[%emt 0:00:49]} Nh5 {[%emt 0:02:04]} 32. Ne6 {[%emt 0:00:39]} Rfe8 {[%emt 0:00:23]} 33. Nxg7 {[%emt 0:00:10]} Re1+ {[%emt 0:00:17]} 34. Kd2 {[%emt 0:00:34]} Rh1 {[%emt 0:00:15]} 35. Nxh5 {[%emt 0:01:48]} Rxh2+ {[%emt 0:00:18]} 36. Kd3 {[%emt 0:00:54]} Rxh5 {[%emt 0:00:05]} 37. a4 {[%emt 0:02:42]} Rh3+ {[%emt 0:03:27]} 38. Kd4 {[%emt 0:01:01]} f4 {[%emt 0:00:52]} 39. Rg7+ {[%emt 0:00:59]} Kh8 {[%emt 0:00:07]} 40. Rgf7 {[%emt 0:00:00]} f3 {[%emt 0:00:39]} 41. b4 {[%emt 0:08:22]} Rd8+ {[%emt 0:05:35]} 42. Ke3 {[%emt 0:02:43]} Rc8 {[%emt 0:02:34]} 43. Rac7 {[%emt 0:00:58]} Re8+ {[%emt 0:01:53]} 44. Kf4 {[%emt 0:06:26]} Rg8 {[%emt 0:01:38]} 45. Ke4 {[%emt 0:04:03]} Re8+ {[%emt 0:01:07]} 46. Kd5 {[%emt 0:02:15]} Rd8+ {[%emt 0:02:52]} 47. Rcd7 {[%emt 0:05:39]} Rc8 {[%emt 0:04:14]} 48. c4 {[%emt 0:03:00]} f2 {[%emt 0:00:12]} 49. Rxf2 {[%emt 0:00:58]} Rd3+ {[%emt 0:00:04]} 50. Ke6 {[%emt 0:00:07]} Re3+ {[%emt 0:03:11]} 51. Kd6 {[%emt 0:01:45]} Rd3+ {[%emt 0:01:50]} 52. Ke7 {[%emt 0:00:07]} Re3+ {[%emt 0:00:10]} 53. Kf7 {[%emt 0:00:15]} Re4 {[%emt 0:02:55]} 54. Rc2 {[%emt 0:00:51]} Rg8 {[%emt 0:01:42]} 55. Rdd2 {[%emt 0:00:51]} Ree8 {[%emt 0:00:56]} 56. Kf6 {[%emt 0:00:29]} Rgf8+ {[%emt 0:00:47]} 57. Kg5 {[%emt 0:00:04]} Re4 {[%emt 0:02:33]} 58. b5 {[%emt 0:00:55]} h6+ {[%emt 0:00:46]} 59. Kxh6 {[%emt 0:00:44]} Rg8 {[%emt 0:01:14]} 60. Rd5 {[%emt 0:00:13]} Rh4+ {[%emt 0:00:44]} 61. Rh5 {[%emt 0:00:11]} Rhg4 {[%emt 0:00:08]} 62. Rd5 {[%emt 0:00:46]} Rh4+ {[%emt 0:00:04]} 63. Rh5 {[%emt 0:00:06]} Rhg4 {[%emt 0:00:05]} 64. Rd5 {[%emt 0:00:58]} Rh4+ {[%emt 0:00:06]} 1/2-1/2

[Event "EYCC 2017"]
[Site "Mamaia"]
[Date "2017.09.12"]
[Round "7"]
[White "Allahverdiyeva, Ayan"]
[Black "Lomaia, Diana"]
[Result "1-0"]
[ECO "B50"]
[WhiteElo "2042"]
[BlackElo "1753"]
[Annotator "NA RC"]
[PlyCount "127"]
[EventDate "2017.??.??"]
[EventType "swiss"]
[EventCountry "ROU"]
[SourceTitle "playchess.com"]
[Source "ChessBase"]
[SourceQuality "1"]
[TimeControl "40/5400+30:1800+30"]

1. e4 {[%emt 0:00:00]} c5 {[%emt 0:00:14]} 2. Nf3 {[%emt 0:00:00]} d6 {[%emt 0:00:16]} 3. c3 {[%emt 0:00:13]} Nf6 {[%emt 0:00:53]} 4. Bd3 {[%emt 0:00:13]} Nc6 {[%emt 0:03:17]} 5. Bc2 {[%emt 0:00:45]} g6 {[%emt 0:05:37]} 6. O-O {[%emt 0:02:50]} Bg7 {[%emt 0:00:13]} 7. d3 {[%emt 0:02:05] B50: Sicilian: 2...d6, Miscellaneous} (7. h3 O-O 8. d4 e5 9. dxc5 dxc5 10. Qe2 Qe7 11. Be3 b6 12. Nbd2 Nh5 13. Bb3 Nd8 14. Nc4 Ne6 15. Rfd1 Ba6 16. a4 Kh8 {1-0 (30) Mamedov,R (2636)-Lu,S (2516) Moscow 2012}) 7... O-O {[%emt 0:00:56]} 8. Re1 {[%emt 0:00:14]} Bg4 {[%emt 0:02:49]} 9. h3 {[%emt 0:00:54]} Bxf3 {[%emt 0:00:15]} 10. Qxf3 {[%emt 0:00:05]} Qc7 {[%emt 0:01:59]} 11. Be3 $146 {[%emt 0:02:25]} ({Predecessor:} 11. Nd2 Rad8 12. Nf1 h6 13. Bf4 Nh5 14. Bh2 e5 15. Ne3 Ne7 16. Bb3 Kh7 17. g4 Nf6 {½-½ (30) Rasmussen,P-Lerch,R ICCF corr 1985}) 11... b5 {[%emt 0:02:12]} 12. Qd1 {[%emt 0:02:00]} Rfc8 {[%emt 0:07:28]} 13. Nd2 {[%emt 0:04:16]} Nd7 {[%emt 0:02:46]} 14. Rc1 {[%emt 0:03:25]} a5 {[%emt 0:02:19]} 15. Nb1 {[%emt 0:03:33]} Qb7 {[%emt 0:04:49]} 16. f4 {[%emt 0:01:35]} b4 {[%emt 0:03:12]} 17. f5 {[%emt 0:14:40]} Nde5 {[%emt 0:03:43]} 18. Rf1 {[%emt 0:09:50]} Kh8 {[%emt 0:08:17]} (18... a4 $5) 19. Qe2 {[%emt 0:12:15]} Qa6 {[%emt 0:01:29]} 20. Bg5 $17 {[%emt 0:02:31]} (20. fxg6 $11 fxg6 21. Rcd1) 20... f6 {[%emt 0:05:21]} 21. Be3 {[%emt 0:04:30]} a4 {[%emt 0:00:28]} 22. c4 {[%emt 0:06:07]} Nd4 {[%emt 0:07:21]} 23. Qd2 {[%emt 0:01:24]} Qb6 {[%emt 0:02:04]} 24. Bd1 {[%emt 0:01:02]} Kg8 {[%emt 0:01:03]} 25. Bg4 {[%emt 0:01:17]} Nxg4 {[%emt 0:07:27]} 26. hxg4 {[%emt 0:00:04]} Rf8 {[%emt 0:03:52]} 27. Kf2 {[%emt 0:02:31]} Kf7 {[%emt 0:02:49]} 28. Rh1 {[%emt 0:00:12]} Rh8 {[%emt 0:01:08]} 29. Rh3 {[%emt 0:00:15]} a3 {[%emt 0:01:58]} 30. Bxd4 {[%emt 0:04:08]} cxd4 {[%emt 0:00:06]} 31. b3 {[%emt 0:00:28]} g5 {[%emt 0:03:30]} 32. e5 {[%emt 0:02:21]} dxe5 {[%emt 0:03:20]} 33. Qe2 {[%emt 0:00:10]} h6 {[%emt 0:01:14]} 34. Nd2 {[%emt 0:00:30]} Qc6 {[%emt 0:00:51]} 35. Ne4 {[%emt 0:00:31]} Rab8 {[%emt 0:00:47]} 36. Qf3 {[%emt 0:01:18]} Rbc8 {[%emt 0:00:54]} 37. c5 {[%emt 0:00:27]} Rc7 {[%emt 0:01:35]} 38. Rc4 {[%emt 0:00:58]} Rb8 {[%emt 0:00:38]} 39. Rh1 {[%emt 0:01:22]} Ke8 {[%emt 0:03:20]} 40. Qh3 {[%emt 0:00:00]} Kf8 {[%emt 0:01:27]} 41. Rhc1 {[%emt 0:03:10]} Qe8 {[%emt 0:08:07]} 42. Qh1 {[%emt 0:05:09]} Qc6 {[%emt 0:03:51]} 43. Qh5 {[%emt 0:02:24]} Qe8 {[%emt 0:05:27]} 44. c6 {[%emt 0:00:58]} Qxh5 {[%emt 0:02:07]} 45. gxh5 {[%emt 0:00:04]} Kf7 {[%emt 0:01:21]} 46. Nc5 {[%emt 0:02:03]} Rxc6 {[%emt 0:01:20]} 47. Ne6 {[%emt 0:00:04]} Rxc4 {[%emt 0:02:23]} 48. Rxc4 {[%emt 0:00:08]} Bf8 {[%emt 0:00:39]} 49. Kf3 {[%emt 0:00:12]} Bg7 {[%emt 0:06:10]} 50. g4 {[%emt 0:00:15]} Bf8 {[%emt 0:00:52]} 51. Ke4 {[%emt 0:00:48]} Bg7 {[%emt 0:00:31]} 52. Kd5 {[%emt 0:01:06]} Bf8 {[%emt 0:01:40]} 53. Rc5 {[%emt 0:00:42]} Bg7 {[%emt 0:00:52]} 54. Kc6 {[%emt 0:01:41]} e4 {[%emt 0:01:31]} 55. dxe4 {[%emt 0:00:32]} d3 {[%emt 0:00:51]} 56. Rd5 {[%emt 0:00:14]} Rc8+ {[%emt 0:00:23]} 57. Nc7 {[%emt 0:00:10]} Rb8 {[%emt 0:01:37]} 58. Rxd3 {[%emt 0:00:25]} Bf8 {[%emt 0:00:37]} 59. Rd7 {[%emt 0:00:45]} Bg7 {[%emt 0:00:56]} 60. Ne6 {[%emt 0:00:26]} Bf8 {[%emt 0:00:19]} 61. Rd8 {[%emt 0:00:42]} Rxd8 {[%emt 0:00:50]} 62. Nxd8+ {[%emt 0:00:35]} Ke8 {[%emt 0:00:11]} 63. Ne6 {[%emt 0:00:04]} Kf7 {[%emt 0:01:15]} 64. Kd7 {[%emt 0:00:28]} 1-0